[Event "Titled Tuesday Blitz June 14 Early 2022"]
[White "Aldokhin, Ivan"]
[Black "Kollars, Dmitrij"]
[WhiteFideId "24115720"]
[BlackFideId "12909572"]
[WhiteElo "2231"]
[BlackElo "2584"]
[Result "0-1"]
[Round "02"]
[TimeControl "180+1"]
[Date "2022.06.14"]
[WhiteClock "0:00:08"]
[BlackClock "0:01:22"]

1. d4 {[%clk 0:03:00]}  d5 {[%clk 0:02:55]} 2. c4 {[%clk 0:03:01]}  e6 {[%clk 0:02:55]} 3. Nc3 {[%clk 0:03:01]}  c6 {[%clk 0:02:53]} 4. cxd5 {[%clk 0:02:54]}  exd5 {[%clk 0:02:52]} 5. Qc2 {[%clk 0:02:48]}  Nf6 {[%clk 0:02:45]} 6. Bg5 {[%clk 0:02:46]}  Be7 {[%clk 0:02:43]} 7. e3 {[%clk 0:02:46]}  h6 {[%clk 0:02:42]} 8. Bh4 {[%clk 0:02:45]}  Nh5 {[%clk 0:02:40]} 9. Bxe7 {[%clk 0:02:44]}  Qxe7 {[%clk 0:02:41]} 10. Nxd5 {[%clk 0:02:29]}  Qd8 {[%clk 0:02:41]} 11. Nc3 {[%clk 0:02:27]}  O-O {[%clk 0:02:41]} 12. Bc4 {[%clk 0:02:20]}  Qg5 {[%clk 0:02:36]} 13. g3 {[%clk 0:01:49]}  Bf5 {[%clk 0:02:35]} 14. Bd3 {[%clk 0:01:48]}  Bg4 {[%clk 0:02:26]} 15. h3 {[%clk 0:01:41]}  Be6 {[%clk 0:02:23]} 16. Nf3 {[%clk 0:01:36]}  Qe7 {[%clk 0:02:20]} 17. O-O-O {[%clk 0:01:33]}  a5 {[%clk 0:02:16]} 18. Kb1 {[%clk 0:01:32]}  Na6 {[%clk 0:02:16]} 19. a3 {[%clk 0:01:31]}  Nf6 {[%clk 0:02:09]} 20. Bf5 {[%clk 0:01:20]}  Nb4 {[%clk 0:01:43]} 21. axb4 {[%clk 0:00:52]}  axb4 {[%clk 0:01:44]} 22. d5 {[%clk 0:00:37]}  Bxf5 {[%clk 0:01:38]} 23. Qxf5 {[%clk 0:00:33]}  bxc3 {[%clk 0:01:39]} 24. d6 {[%clk 0:00:26]}  Qd8 {[%clk 0:01:39]} 25. Rd3 {[%clk 0:00:17]}  Nd5 {[%clk 0:01:34]} 26. Rxd5 {[%clk 0:00:13]}  Qb6 {[%clk 0:01:26]} 27. Qc2 {[%clk 0:00:11]}  cxd5 {[%clk 0:01:22]} 28. Qxc3 {[%clk 0:00:09]}  Rfc8 {[%clk 0:01:22]} 29. Qd4 {[%clk 0:00:08]}  Qa6 {[%clk 0:01:22]} 0-1


[Site "https://www.chess.com"]

[Event "Titled Tuesday Blitz June 14 Early 2022"]
[White "Alinasab, Mobina"]
[Black "Hakobyan, Aram"]
[WhiteFideId "12528897"]
[BlackFideId "13306677"]
[WhiteElo "2031"]
[BlackElo "2557"]
[Result "0-1"]
[Round "02"]
[TimeControl "180+1"]
[Date "2022.06.14"]
[WhiteClock "0:00:07"]
[BlackClock "0:00:19"]

1. Nf3 {[%clk 0:03:00]}  d5 {[%clk 0:02:58]} 2. g3 {[%clk 0:03:01]}  Nc6 {[%clk 0:02:56]} 3. Bg2 {[%clk 0:03:01]}  e5 {[%clk 0:02:56]} 4. d3 {[%clk 0:03:00]}  Be7 {[%clk 0:02:56]} 5. b3 {[%clk 0:02:57]}  e4 {[%clk 0:02:52]} 6. dxe4 {[%clk 0:02:55]}  dxe4 {[%clk 0:02:53]} 7. Qxd8+ {[%clk 0:02:55]}  Bxd8 {[%clk 0:02:54]} 8. Nfd2 {[%clk 0:02:53]}  f5 {[%clk 0:02:39]} 9. Bb2 {[%clk 0:02:51]}  Bf6 {[%clk 0:02:40]} 10. Bxf6 {[%clk 0:02:50]}  Nxf6 {[%clk 0:02:41]} 11. c4 {[%clk 0:02:47]}  Be6 {[%clk 0:02:38]} 12. Nc3 {[%clk 0:02:47]}  O-O-O {[%clk 0:02:36]} 13. h3 {[%clk 0:02:33]}  Rd7 {[%clk 0:02:28]} 14. O-O-O {[%clk 0:02:31]}  Rhd8 {[%clk 0:02:28]} 15. f3 {[%clk 0:01:39]}  Nh5 {[%clk 0:01:27]} 16. Nf1 {[%clk 0:01:21]}  Rxd1+ {[%clk 0:01:24]} 17. Nxd1 {[%clk 0:01:22]}  Nd4 {[%clk 0:01:24]} 18. Nc3 {[%clk 0:01:18]}  exf3 {[%clk 0:01:12]} 19. exf3 {[%clk 0:01:19]}  f4 {[%clk 0:01:10]} 20. g4 {[%clk 0:01:13]}  Nf6 {[%clk 0:01:08]} 21. Nd2 {[%clk 0:01:07]}  Bd7 {[%clk 0:01:08]} 22. Re1 {[%clk 0:01:00]}  Bc6 {[%clk 0:01:06]} 23. Re7 {[%clk 0:00:55]}  Rd7 {[%clk 0:00:58]} 24. Re5 {[%clk 0:00:54]}  Kd8 {[%clk 0:00:48]} 25. Ne2 {[%clk 0:00:49]}  Nxe2+ {[%clk 0:00:48]} 26. Rxe2 {[%clk 0:00:50]}  Re7 {[%clk 0:00:48]} 27. Rxe7 {[%clk 0:00:46]}  Kxe7 {[%clk 0:00:49]} 28. Bf1 {[%clk 0:00:46]}  Kd6 {[%clk 0:00:47]} 29. Kc2 {[%clk 0:00:41]}  Ke5 {[%clk 0:00:43]} 30. Kd3 {[%clk 0:00:38]}  h6 {[%clk 0:00:41]} 31. b4 {[%clk 0:00:31]}  b6 {[%clk 0:00:41]} 32. Nb3 {[%clk 0:00:20]}  Bxf3 {[%clk 0:00:37]} 33. Nd4 {[%clk 0:00:19]}  Be4+ {[%clk 0:00:37]} 34. Kc3 {[%clk 0:00:19]}  f3 {[%clk 0:00:36]} 35. Nb5 {[%clk 0:00:19]}  Kf4 {[%clk 0:00:25]} 36. Nxc7 {[%clk 0:00:18]}  Ke3 {[%clk 0:00:25]} 37. c5 {[%clk 0:00:13]}  bxc5 {[%clk 0:00:23]} 38. bxc5 {[%clk 0:00:13]}  Kf2 {[%clk 0:00:24]} 39. Bc4 {[%clk 0:00:12]}  Kg1 {[%clk 0:00:22]} 40. Kd4 {[%clk 0:00:12]}  f2 {[%clk 0:00:22]} 41. Ne6 {[%clk 0:00:07]}  Bd5 {[%clk 0:00:19]} 0-1


[Site "https://www.chess.com"]

[Event "Titled Tuesday Blitz June 14 Early 2022"]
[White "Antipov, Mikhail Al."]
[Black "Perez Gormaz, Matias"]
[WhiteFideId "4107012"]
[BlackFideId "3406342"]
[WhiteElo "2524"]
[BlackElo "2341"]
[Result "1-0"]
[Round "02"]
[TimeControl "180+1"]
[Date "2022.06.14"]
[WhiteClock "0:01:35"]
[BlackClock "0:00:03"]

1. e4 {[%clk 0:03:00]}  d5 {[%clk 0:02:59]} 2. exd5 {[%clk 0:03:00]}  Qxd5 {[%clk 0:03:00]} 3. Nf3 {[%clk 0:03:00]}  Bg4 {[%clk 0:02:56]} 4. Be2 {[%clk 0:03:00]}  Nc6 {[%clk 0:02:54]} 5. h3 {[%clk 0:02:59]}  Bxf3 {[%clk 0:02:50]} 6. Bxf3 {[%clk 0:03:00]}  Qe6+ {[%clk 0:02:51]} 7. Qe2 {[%clk 0:02:58]}  Nd4 {[%clk 0:02:44]} 8. Qxe6 {[%clk 0:02:58]}  Nxf3+ {[%clk 0:02:44]} 9. gxf3 {[%clk 0:02:59]}  fxe6 {[%clk 0:02:45]} 10. a4 {[%clk 0:02:59]}  a5 {[%clk 0:02:43]} 11. Ra3 {[%clk 0:02:58]}  Nf6 {[%clk 0:02:41]} 12. Re3 {[%clk 0:02:56]}  Kf7 {[%clk 0:02:40]} 13. d3 {[%clk 0:02:54]}  Nd5 {[%clk 0:02:38]} 14. Re4 {[%clk 0:02:53]}  Nb4 {[%clk 0:02:38]} 15. Na3 {[%clk 0:02:47]}  g6 {[%clk 0:02:33]} 16. Ke2 {[%clk 0:02:43]}  Bg7 {[%clk 0:02:32]} 17. c3 {[%clk 0:02:43]}  Nd5 {[%clk 0:02:29]} 18. Nc4 {[%clk 0:02:43]}  b6 {[%clk 0:02:16]} 19. Re1 {[%clk 0:02:42]}  Bxc3 {[%clk 0:00:24]} 20. bxc3 {[%clk 0:02:41]}  Nxc3+ {[%clk 0:00:25]} 21. Kd2 {[%clk 0:02:38]}  Nxe4+ {[%clk 0:00:25]} 22. Rxe4 {[%clk 0:02:38]}  Rhd8 {[%clk 0:00:25]} 23. Ne5+ {[%clk 0:02:36]}  Kg8 {[%clk 0:00:24]} 24. Ba3 {[%clk 0:02:36]}  c5 {[%clk 0:00:13]} 25. Nc4 {[%clk 0:02:35]}  Rd4 {[%clk 0:00:04]} 26. Nxb6 {[%clk 0:02:20]}  Rad8 {[%clk 0:00:05]} 27. Rxd4 {[%clk 0:02:17]}  Rxd4 {[%clk 0:00:06]} 28. Bxc5 {[%clk 0:02:13]}  Rh4 {[%clk 0:00:06]} 29. Nc4 {[%clk 0:02:02]}  Kf7 {[%clk 0:00:03]} 30. Ke3 {[%clk 0:01:55]}  Rxh3 {[%clk 0:00:02]} 31. Nxa5 {[%clk 0:01:54]}  Rh1 {[%clk 0:00:03]} 32. Nc4 {[%clk 0:01:49]}  Ra1 {[%clk 0:00:02]} 33. a5 {[%clk 0:01:46]}  h5 {[%clk 0:00:03]} 34. Kf4 {[%clk 0:01:40]}  h4 {[%clk 0:00:02]} 35. Kg4 {[%clk 0:01:40]}  g5 {[%clk 0:00:03]} 36. Be3 {[%clk 0:01:36]}  Rg1+ {[%clk 0:00:03]} 37. Kh3 {[%clk 0:01:36]}  Rd1 {[%clk 0:00:03]} 38. Bxg5 {[%clk 0:01:35]}  Rxd3 {[%clk 0:00:03]} 39. Ne5+ {[%clk 0:01:35]} 1-0


[Site "https://www.chess.com"]

[Event "Titled Tuesday Blitz June 14 Early 2022"]
[White "Daneshvar, Bardiya"]
[Black "Tica, Sven"]
[WhiteFideId "12576468"]
[BlackFideId "14526948"]
[WhiteElo "2303"]
[BlackElo "2346"]
[Result "1-0"]
[Round "02"]
[TimeControl "180+1"]
[Date "2022.06.14"]
[WhiteClock "0:00:41"]
[BlackClock "0:00:18"]

1. b3 {[%clk 0:03:00]}  c5 {[%clk 0:02:58]} 2. Bb2 {[%clk 0:03:00]}  Nc6 {[%clk 0:02:58]} 3. e3 {[%clk 0:03:00]}  d6 {[%clk 0:02:59]} 4. Nf3 {[%clk 0:02:58]}  e5 {[%clk 0:02:58]} 5. c4 {[%clk 0:02:56]}  Nge7 {[%clk 0:02:52]} 6. d4 {[%clk 0:02:55]}  Bg4 {[%clk 0:02:47]} 7. d5 {[%clk 0:02:54]}  Nb8 {[%clk 0:02:46]} 8. Nc3 {[%clk 0:02:53]}  a6 {[%clk 0:02:44]} 9. h3 {[%clk 0:02:51]}  Bh5 {[%clk 0:02:44]} 10. g4 {[%clk 0:02:51]}  Bg6 {[%clk 0:02:44]} 11. Nh4 {[%clk 0:02:50]}  Nd7 {[%clk 0:02:30]} 12. Nxg6 {[%clk 0:02:47]}  Nxg6 {[%clk 0:02:28]} 13. Bd3 {[%clk 0:02:38]}  Be7 {[%clk 0:02:25]} 14. a4 {[%clk 0:02:35]}  Qa5 {[%clk 0:02:21]} 15. Kd2 {[%clk 0:02:28]}  Nf6 {[%clk 0:02:18]} 16. Kc2 {[%clk 0:02:26]}  Nh4 {[%clk 0:02:16]} 17. g5 {[%clk 0:02:23]}  Nd7 {[%clk 0:02:13]} 18. Qg4 {[%clk 0:02:24]}  Ng6 {[%clk 0:02:12]} 19. h4 {[%clk 0:02:23]}  O-O-O {[%clk 0:02:06]} 20. h5 {[%clk 0:02:18]}  Nf8 {[%clk 0:02:06]} 21. Ne4 {[%clk 0:02:15]}  Kb8 {[%clk 0:02:01]} 22. Qf5 {[%clk 0:02:10]}  f6 {[%clk 0:01:52]} 23. g6 {[%clk 0:02:08]}  h6 {[%clk 0:01:50]} 24. Bc3 {[%clk 0:02:06]}  Qc7 {[%clk 0:01:50]} 25. Ng3 {[%clk 0:01:56]}  Ka7 {[%clk 0:01:38]} 26. a5 {[%clk 0:01:55]}  Nb8 {[%clk 0:01:32]} 27. Qe4 {[%clk 0:01:51]}  Rc8 {[%clk 0:01:25]} 28. Nf5 {[%clk 0:01:49]}  Bd8 {[%clk 0:01:24]} 29. Kd2 {[%clk 0:01:48]}  Rg8 {[%clk 0:01:18]} 30. Ke2 {[%clk 0:01:47]}  Nfd7 {[%clk 0:01:18]} 31. Kf3 {[%clk 0:01:44]}  Nf8 {[%clk 0:01:17]} 32. Kg2 {[%clk 0:01:44]}  Qd7 {[%clk 0:01:18]} 33. Be2 {[%clk 0:01:43]}  Bc7 {[%clk 0:01:16]} 34. Rhb1 {[%clk 0:01:42]}  Ka8 {[%clk 0:01:12]} 35. Bg4 {[%clk 0:01:38]}  Qd8 {[%clk 0:01:12]} 36. Qc2 {[%clk 0:01:32]}  Qe8 {[%clk 0:01:08]} 37. Rb2 {[%clk 0:01:31]}  Nxg6 {[%clk 0:00:56]} 38. hxg6 {[%clk 0:01:28]}  Qxg6 {[%clk 0:00:57]} 39. Kf3 {[%clk 0:01:25]}  h5 {[%clk 0:00:56]} 40. Bh3 {[%clk 0:01:25]}  Rce8 {[%clk 0:00:56]} 41. Qe4 {[%clk 0:01:10]}  Qf7 {[%clk 0:00:52]} 42. Ke2 {[%clk 0:01:09]}  Rgf8 {[%clk 0:00:50]} 43. Rg1 {[%clk 0:01:06]}  g5 {[%clk 0:00:46]} 44. b4 {[%clk 0:01:05]}  g4 {[%clk 0:00:45]} 45. Bg2 {[%clk 0:01:02]}  Nd7 {[%clk 0:00:45]} 46. b5 {[%clk 0:00:57]}  Rb8 {[%clk 0:00:42]} 47. b6 {[%clk 0:00:55]}  Bd8 {[%clk 0:00:38]} 48. Nxd6 {[%clk 0:00:55]}  Qg7 {[%clk 0:00:34]} 49. Qf5 {[%clk 0:00:49]}  Qe7 {[%clk 0:00:33]} 50. Qe6 {[%clk 0:00:48]}  Qh7 {[%clk 0:00:30]} 51. Be4 {[%clk 0:00:47]}  Qg7 {[%clk 0:00:28]} 52. Ne8 {[%clk 0:00:43]}  Rxe8 {[%clk 0:00:18]} 53. Qxe8 {[%clk 0:00:44]}  Bxb6 {[%clk 0:00:18]} 54. Qg6 {[%clk 0:00:41]}  Qxg6 {[%clk 0:00:17]} 55. Bxg6 {[%clk 0:00:42]}  Bc7 {[%clk 0:00:18]} 56. Bf5 {[%clk 0:00:41]} 1-0


[Site "https://www.chess.com"]

[Event "Titled Tuesday Blitz June 14 Early 2022"]
[White "Dubov, Daniil"]
[Black "Preotu, Razvan"]
[WhiteFideId "24126055"]
[BlackFideId "2613280"]
[WhiteElo "2791"]
[BlackElo "2407"]
[Result "1-0"]
[Round "02"]
[TimeControl "180+1"]
[Date "2022.06.14"]
[WhiteClock "0:01:23"]
[BlackClock "0:00:28"]

1. c4 {[%clk 0:03:00]}  c5 {[%clk 0:02:59]} 2. Nf3 {[%clk 0:03:00]}  Nc6 {[%clk 0:02:59]} 3. d4 {[%clk 0:02:59]}  cxd4 {[%clk 0:03:00]} 4. Nxd4 {[%clk 0:03:00]}  Nf6 {[%clk 0:03:01]} 5. Nc3 {[%clk 0:03:00]}  e6 {[%clk 0:03:01]} 6. g3 {[%clk 0:03:00]}  Qb6 {[%clk 0:02:57]} 7. Nb3 {[%clk 0:03:00]}  Ne5 {[%clk 0:02:55]} 8. Bg2 {[%clk 0:02:59]}  Nxc4 {[%clk 0:02:43]} 9. O-O {[%clk 0:02:59]}  Bb4 {[%clk 0:02:41]} 10. Bg5 {[%clk 0:02:55]}  d5 {[%clk 0:02:14]} 11. Bxf6 {[%clk 0:02:54]}  gxf6 {[%clk 0:02:14]} 12. Bxd5 {[%clk 0:02:55]}  Bxc3 {[%clk 0:01:49]} 13. Bxc4 {[%clk 0:02:54]}  Be5 {[%clk 0:01:32]} 14. Nd2 {[%clk 0:02:54]}  f5 {[%clk 0:01:32]} 15. e4 {[%clk 0:02:53]}  f4 {[%clk 0:00:59]} 16. Qh5 {[%clk 0:02:50]}  Bg7 {[%clk 0:00:42]} 17. Bb5+ {[%clk 0:02:45]}  Kf8 {[%clk 0:00:42]} 18. Nf3 {[%clk 0:02:30]}  fxg3 {[%clk 0:00:40]} 19. Ng5 {[%clk 0:02:21]}  gxh2+ {[%clk 0:00:39]} 20. Kh1 {[%clk 0:02:20]}  Qc7 {[%clk 0:00:39]} 21. Rad1 {[%clk 0:02:09]}  Qf4 {[%clk 0:00:32]} 22. Rd3 {[%clk 0:01:24]}  Bf6 {[%clk 0:00:28]} 23. Qxf7# {[%clk 0:01:23]} 1-0


[Site "https://www.chess.com"]

[Event "Titled Tuesday Blitz June 14 Early 2022"]
[White "Fedoseev, Vladimir"]
[Black "Mindlin, Alon"]
[WhiteFideId "24130737"]
[BlackFideId "2800071"]
[WhiteElo "2726"]
[BlackElo "2390"]
[Result "1-0"]
[Round "02"]
[TimeControl "180+1"]
[Date "2022.06.14"]
[WhiteClock "0:00:28"]
[BlackClock "0:00:14"]

1. e4 {[%clk 0:03:00]}  e5 {[%clk 0:02:58]} 2. Nf3 {[%clk 0:02:42]}  Nc6 {[%clk 0:02:57]} 3. Bb5 {[%clk 0:02:42]}  a6 {[%clk 0:02:56]} 4. Bxc6 {[%clk 0:02:40]}  dxc6 {[%clk 0:02:56]} 5. O-O {[%clk 0:02:40]}  f6 {[%clk 0:02:56]} 6. d4 {[%clk 0:02:40]}  Bg4 {[%clk 0:02:55]} 7. dxe5 {[%clk 0:02:37]}  Qxd1 {[%clk 0:02:56]} 8. Rxd1 {[%clk 0:02:36]}  fxe5 {[%clk 0:02:57]} 9. Rd3 {[%clk 0:02:34]}  Bd6 {[%clk 0:02:56]} 10. Bg5 {[%clk 0:02:33]}  Nf6 {[%clk 0:02:53]} 11. Nbd2 {[%clk 0:02:32]}  O-O {[%clk 0:02:44]} 12. Re1 {[%clk 0:02:26]}  Be6 {[%clk 0:02:32]} 13. Bxf6 {[%clk 0:02:18]}  Rxf6 {[%clk 0:02:26]} 14. Ng5 {[%clk 0:02:18]}  Bd7 {[%clk 0:02:19]} 15. Nc4 {[%clk 0:02:16]}  Raf8 {[%clk 0:02:03]} 16. Nf3 {[%clk 0:02:09]}  Bc8 {[%clk 0:01:47]} 17. Rd2 {[%clk 0:01:49]}  Re8 {[%clk 0:01:38]} 18. Red1 {[%clk 0:01:43]}  Bg4 {[%clk 0:01:33]} 19. Nxd6 {[%clk 0:01:42]}  cxd6 {[%clk 0:01:32]} 20. Rxd6 {[%clk 0:01:43]}  Bxf3 {[%clk 0:01:33]} 21. gxf3 {[%clk 0:01:43]}  Rxf3 {[%clk 0:01:33]} 22. Rd7 {[%clk 0:01:42]}  Rf7 {[%clk 0:01:30]} 23. Kg2 {[%clk 0:01:36]}  g6 {[%clk 0:01:21]} 24. Kg3 {[%clk 0:01:30]}  Kg7 {[%clk 0:01:19]} 25. R1d6 {[%clk 0:01:17]}  Rf8 {[%clk 0:01:13]} 26. Rxf7+ {[%clk 0:01:16]}  Rxf7 {[%clk 0:01:13]} 27. Re6 {[%clk 0:01:16]}  Rd7 {[%clk 0:01:09]} 28. Rxe5 {[%clk 0:01:15]}  Kf6 {[%clk 0:01:08]} 29. Rc5 {[%clk 0:01:15]}  g5 {[%clk 0:01:04]} 30. f3 {[%clk 0:01:09]}  Rd1 {[%clk 0:00:57]} 31. h4 {[%clk 0:01:05]}  h6 {[%clk 0:00:55]} 32. hxg5+ {[%clk 0:01:03]}  hxg5 {[%clk 0:00:56]} 33. a4 {[%clk 0:01:03]}  Rd2 {[%clk 0:00:49]} 34. a5 {[%clk 0:01:01]}  Kg6 {[%clk 0:00:47]} 35. b4 {[%clk 0:01:00]}  Kf6 {[%clk 0:00:40]} 36. c3 {[%clk 0:00:56]}  Rc2 {[%clk 0:00:39]} 37. f4 {[%clk 0:00:55]}  gxf4+ {[%clk 0:00:37]} 38. Kxf4 {[%clk 0:00:56]}  Ke6 {[%clk 0:00:37]} 39. Ke3 {[%clk 0:00:56]}  Kd6 {[%clk 0:00:34]} 40. Kd3 {[%clk 0:00:56]}  Rh2 {[%clk 0:00:33]} 41. Rg5 {[%clk 0:00:54]}  Rh6 {[%clk 0:00:29]} 42. Rg7 {[%clk 0:00:51]}  c5 {[%clk 0:00:11]} 43. Rxb7 {[%clk 0:00:46]}  Rh3+ {[%clk 0:00:12]} 44. Kc4 {[%clk 0:00:45]}  Re3 {[%clk 0:00:12]} 45. Rb6+ {[%clk 0:00:45]}  Kc7 {[%clk 0:00:13]} 46. Kxc5 {[%clk 0:00:40]}  Rxc3+ {[%clk 0:00:13]} 47. Kd4 {[%clk 0:00:40]}  Rb3 {[%clk 0:00:14]} 48. e5 {[%clk 0:00:39]}  Kd7 {[%clk 0:00:13]} 49. Kc4 {[%clk 0:00:35]}  Re3 {[%clk 0:00:13]} 50. e6+ {[%clk 0:00:35]}  Kc7 {[%clk 0:00:13]} 51. Rxa6 {[%clk 0:00:35]}  Re4+ {[%clk 0:00:13]} 52. Kb5 {[%clk 0:00:34]}  Kb7 {[%clk 0:00:13]} 53. Rb6+ {[%clk 0:00:30]}  Ka7 {[%clk 0:00:14]} 54. Rd6 {[%clk 0:00:30]}  Kb7 {[%clk 0:00:14]} 55. a6+ {[%clk 0:00:28]}  Ka7 {[%clk 0:00:14]} 56. Rd7+ {[%clk 0:00:28]} 1-0


[Site "https://www.chess.com"]

[Event "Titled Tuesday Blitz June 14 Early 2022"]
[White "Kozlov, Gennady"]
[Black "Abdrlauf, Elham"]
[WhiteFideId "4191668"]
[BlackFideId "1533533"]
[WhiteElo "2392"]
[BlackElo "2403"]
[Result "0-1"]
[Round "02"]
[TimeControl "180+1"]
[Date "2022.06.14"]
[WhiteClock "0:01:21"]
[BlackClock "0:00:25"]

1. b3 {[%clk 0:03:00]}  e5 {[%clk 0:02:59]} 2. Bb2 {[%clk 0:03:00]}  Nc6 {[%clk 0:03:00]} 3. e3 {[%clk 0:03:01]}  Nf6 {[%clk 0:03:00]} 4. f4 {[%clk 0:03:00]}  exf4 {[%clk 0:02:55]} 5. exf4 {[%clk 0:03:01]}  d5 {[%clk 0:02:53]} 6. Nf3 {[%clk 0:03:01]}  Bd6 {[%clk 0:02:53]} 7. Be5 {[%clk 0:03:00]}  O-O {[%clk 0:02:51]} 8. Bb5 {[%clk 0:02:58]}  Ng4 {[%clk 0:02:06]} 9. Bxc6 {[%clk 0:02:49]}  bxc6 {[%clk 0:02:07]} 10. O-O {[%clk 0:02:49]}  Ba6 {[%clk 0:02:00]} 11. Re1 {[%clk 0:02:44]}  Bc5+ {[%clk 0:01:49]} 12. d4 {[%clk 0:02:43]}  Be7 {[%clk 0:01:48]} 13. f5 {[%clk 0:02:36]}  Nh6 {[%clk 0:01:47]} 14. Nfd2 {[%clk 0:02:12]}  Nxf5 {[%clk 0:01:44]} 15. Qg4 {[%clk 0:02:11]}  g6 {[%clk 0:01:42]} 16. Nf3 {[%clk 0:02:09]}  Bf6 {[%clk 0:01:40]} 17. c3 {[%clk 0:02:04]}  Re8 {[%clk 0:01:36]} 18. Nbd2 {[%clk 0:02:03]}  Bg7 {[%clk 0:01:23]} 19. Qf4 {[%clk 0:02:02]}  Bh6 {[%clk 0:01:16]} 20. Qg4 {[%clk 0:01:55]}  Bc8 {[%clk 0:01:12]} 21. Bf4 {[%clk 0:01:44]}  Nxd4 {[%clk 0:00:56]} 22. Qg3 {[%clk 0:01:44]}  Bxf4 {[%clk 0:00:52]} 23. Qxf4 {[%clk 0:01:44]}  Ne2+ {[%clk 0:00:52]} 24. Rxe2 {[%clk 0:01:44]}  Rxe2 {[%clk 0:00:53]} 25. Nd4 {[%clk 0:01:43]}  g5 {[%clk 0:00:36]} 26. Qf1 {[%clk 0:01:30]}  Rxd2 {[%clk 0:00:36]} 27. Nxc6 {[%clk 0:01:30]}  Qd6 {[%clk 0:00:34]} 28. Nd4 {[%clk 0:01:26]}  Rxd4 {[%clk 0:00:33]} 29. cxd4 {[%clk 0:01:26]}  Ba6 {[%clk 0:00:30]} 30. Qc1 {[%clk 0:01:25]}  h6 {[%clk 0:00:25]} 31. g3 {[%clk 0:01:21]}  Re8 {[%clk 0:00:25]} 0-1


[Site "https://www.chess.com"]

[Event "Titled Tuesday Blitz June 14 Early 2022"]
[White "Livaic, Leon"]
[Black "Pinheiro, Iung Alicio de O."]
[WhiteFideId "14531534"]
[BlackFideId "2104350"]
[WhiteElo "2540"]
[BlackElo "2283"]
[Result "1-0"]
[Round "02"]
[TimeControl "180+1"]
[Date "2022.06.14"]
[WhiteClock "0:02:49"]
[BlackClock "0:02:01"]

1. d4 {[%clk 0:03:00]}  Nf6 {[%clk 0:02:59]} 2. c4 {[%clk 0:03:00]}  g6 {[%clk 0:02:58]} 3. Nc3 {[%clk 0:03:00]}  d5 {[%clk 0:02:58]} 4. Nf3 {[%clk 0:03:00]}  Bg7 {[%clk 0:02:58]} 5. Bg5 {[%clk 0:02:59]}  dxc4 {[%clk 0:02:58]} 6. e4 {[%clk 0:02:59]}  c5 {[%clk 0:02:58]} 7. d5 {[%clk 0:03:00]}  b5 {[%clk 0:02:58]} 8. d6 {[%clk 0:03:00]}  Bb7 {[%clk 0:02:57]} 9. e5 {[%clk 0:03:01]}  Ng4 {[%clk 0:02:03]} 10. dxe7 {[%clk 0:02:50]}  Qa5 {[%clk 0:02:01]} 11. Qd8+ {[%clk 0:02:49]} 1-0


[Site "https://www.chess.com"]

[Event "Titled Tuesday Blitz June 14 Early 2022"]
[White "Paravyan, David"]
[Black "Starozhilov, Leonid"]
[WhiteFideId "4194985"]
[BlackFideId "14106752"]
[WhiteElo "2569"]
[BlackElo "2414"]
[Result "1-0"]
[Round "02"]
[TimeControl "180+1"]
[Date "2022.06.14"]
[WhiteClock "0:00:23"]
[BlackClock "0:00:08"]

1. e4 {[%clk 0:03:00]}  Nc6 {[%clk 0:02:57]} 2. Nf3 {[%clk 0:02:56]}  d6 {[%clk 0:02:58]} 3. d4 {[%clk 0:02:55]}  Nf6 {[%clk 0:02:58]} 4. c3 {[%clk 0:02:53]}  g6 {[%clk 0:02:57]} 5. Bd3 {[%clk 0:02:52]}  Bg7 {[%clk 0:02:57]} 6. h3 {[%clk 0:02:52]}  e5 {[%clk 0:02:57]} 7. O-O {[%clk 0:02:50]}  O-O {[%clk 0:02:55]} 8. Re1 {[%clk 0:02:51]}  Re8 {[%clk 0:02:49]} 9. Nbd2 {[%clk 0:02:42]}  d5 {[%clk 0:02:39]} 10. dxe5 {[%clk 0:02:33]}  Nxe4 {[%clk 0:02:30]} 11. Nxe4 {[%clk 0:02:31]}  dxe4 {[%clk 0:02:28]} 12. Bxe4 {[%clk 0:02:32]}  Qxd1 {[%clk 0:02:22]} 13. Rxd1 {[%clk 0:02:33]}  Nxe5 {[%clk 0:02:20]} 14. Nxe5 {[%clk 0:02:33]}  Bxe5 {[%clk 0:02:16]} 15. Be3 {[%clk 0:02:26]}  Be6 {[%clk 0:02:11]} 16. Bxb7 {[%clk 0:02:17]}  Rab8 {[%clk 0:02:02]} 17. Bc6 {[%clk 0:02:17]}  Red8 {[%clk 0:01:59]} 18. Rxd8+ {[%clk 0:02:15]}  Rxd8 {[%clk 0:01:59]} 19. Re1 {[%clk 0:02:10]}  Bxa2 {[%clk 0:01:50]} 20. Bxa7 {[%clk 0:01:55]}  Bf6 {[%clk 0:01:44]} 21. Re8+ {[%clk 0:01:51]}  Rxe8 {[%clk 0:01:43]} 22. Bxe8 {[%clk 0:01:52]}  Bc4 {[%clk 0:01:36]} 23. Bc6 {[%clk 0:01:50]}  Kf8 {[%clk 0:01:31]} 24. Bc5+ {[%clk 0:01:50]}  Be7 {[%clk 0:01:18]} 25. Bd4 {[%clk 0:01:48]}  Bg5 {[%clk 0:01:03]} 26. f3 {[%clk 0:01:39]}  Ke7 {[%clk 0:00:49]} 27. Be5 {[%clk 0:01:36]}  Be3+ {[%clk 0:00:46]} 28. Kh2 {[%clk 0:01:36]}  Bc1 {[%clk 0:00:45]} 29. b4 {[%clk 0:01:35]}  Bd2 {[%clk 0:00:45]} 30. Bxc7 {[%clk 0:01:07]}  Bxc3 {[%clk 0:00:41]} 31. b5 {[%clk 0:01:07]}  h5 {[%clk 0:00:36]} 32. h4 {[%clk 0:01:07]}  f6 {[%clk 0:00:28]} 33. f4 {[%clk 0:00:45]}  Ke6 {[%clk 0:00:27]} 34. Kg3 {[%clk 0:00:41]}  Kf5 {[%clk 0:00:20]} 35. Kf3 {[%clk 0:00:39]}  Bd2 {[%clk 0:00:16]} 36. Bd7+ {[%clk 0:00:38]}  Be6 {[%clk 0:00:14]} 37. Bc6 {[%clk 0:00:30]}  Bc4 {[%clk 0:00:14]} 38. b6 {[%clk 0:00:28]}  Ba5 {[%clk 0:00:10]} 39. Be4+ {[%clk 0:00:25]}  Ke6 {[%clk 0:00:11]} 40. Bxg6 {[%clk 0:00:26]}  Bb3 {[%clk 0:00:10]} 41. Ke2 {[%clk 0:00:24]}  Bd5 {[%clk 0:00:08]} 42. g3 {[%clk 0:00:23]}  Bc4+ {[%clk 0:00:08]} 43. Kf2 {[%clk 0:00:23]} 1-0


[Site "https://www.chess.com"]

[Event "Titled Tuesday Blitz June 14 Early 2022"]
[White "Sadhwani, Raunak"]
[Black "Begmuratov, Khumoyun"]
[WhiteFideId "35093487"]
[BlackFideId "14210207"]
[WhiteElo "2616"]
[BlackElo "1982"]
[Result "1-0"]
[Round "02"]
[TimeControl "180+1"]
[Date "2022.06.14"]
[WhiteClock "0:02:14"]
[BlackClock "0:01:54"]

1. e4 {[%clk 0:02:58]}  e5 {[%clk 0:02:55]} 2. Nf3 {[%clk 0:02:58]}  Nc6 {[%clk 0:02:54]} 3. Bb5 {[%clk 0:02:58]}  a6 {[%clk 0:02:54]} 4. Ba4 {[%clk 0:02:59]}  Nf6 {[%clk 0:02:53]} 5. d3 {[%clk 0:02:59]}  b5 {[%clk 0:02:50]} 6. Bb3 {[%clk 0:02:59]}  Bb7 {[%clk 0:02:49]} 7. Nc3 {[%clk 0:02:59]}  Bc5 {[%clk 0:02:47]} 8. Nd5 {[%clk 0:02:55]}  h6 {[%clk 0:02:45]} 9. c3 {[%clk 0:02:51]}  d6 {[%clk 0:02:42]} 10. Nxf6+ {[%clk 0:02:47]}  Qxf6 {[%clk 0:02:40]} 11. Bd5 {[%clk 0:02:48]}  Rb8 {[%clk 0:02:33]} 12. a4 {[%clk 0:02:45]}  O-O {[%clk 0:02:32]} 13. g4 {[%clk 0:02:45]}  Ne7 {[%clk 0:02:24]} 14. g5 {[%clk 0:02:45]}  Qg6 {[%clk 0:02:16]} 15. Bxb7 {[%clk 0:02:43]}  Rxb7 {[%clk 0:02:14]} 16. gxh6 {[%clk 0:02:40]}  Qg2 {[%clk 0:02:11]} 17. Rf1 {[%clk 0:02:40]}  f5 {[%clk 0:02:10]} 18. d4 {[%clk 0:02:21]}  exd4 {[%clk 0:02:03]} 19. Rg1 {[%clk 0:02:16]}  Qh3 {[%clk 0:01:58]} 20. Rxg7+ {[%clk 0:02:17]}  Kh8 {[%clk 0:01:57]} 21. Rxe7 {[%clk 0:02:15]}  fxe4 {[%clk 0:01:54]} 22. Rh7+ {[%clk 0:02:14]}  Kg8 {[%clk 0:01:54]} 23. Qb3+ {[%clk 0:02:14]} 1-0


[Site "https://www.chess.com"]